bitfinex/quotes_ETHUSD_20250318
["timestamp","ask_amount","ask_price","bid_price","bid_amount"]
[1742303981404,3.0,1900.7,1900.6,7.24257586]
[1742303981607,4.70472711,1900.8,1900.6,7.24257586]
[1742303981810,4.70472711,1900.8,1900.7,5.98546759]
[1742303982707,3.0,1901.0,1900.7,6.47585113]
[1742303982911,7.70472711,1901.0,1900.8,11.0235]
[1742303983088,7.70472711,1901.0,1900.8,12.81268472]
[1742303983485,7.70472711,1901.0,1900.8,18.07345472]
[1742303983690,4.70472711,1901.0,1900.9,5.26066]
[1742303983891,4.70472711,1901.0,1900.9,5.65315602]
[1742303984207,4.70472711,1901.0,1900.9,6.14353956]
[1742303984410,4.70472711,1901.0,1900.9,8.10195712]
[1742303984608,3.0,1901.2,1901.0,5.26032]
[1742303984813,7.70472711,1901.2,1901.1,4.959]
[1742303985214,4.70472711,1901.2,1901.1,10.21911]
[1742303985425,4.70472711,1901.2,1901.1,12.25742454]
[1742303985729,4.70472711,1901.2,1901.1,6.99731454]
[1742303986195,4.70472711,1901.2,1901.1,8.27407661]
[1742303986811,4.70472711,1901.2,1901.1,9.29465399]
[1742303987371,9.96455711,1901.2,1901.1,9.29465399]
[1742303987574,9.96455711,1901.2,1901.1,7.74672299]
[1742303988076,4.70472711,1901.2,1901.1,7.11864163]
[1742303988733,4.70472711,1901.2,1901.1,6.33192142]
[1742303990045,4.70472711,1901.2,1901.1,12.37875163]
[1742303990262,4.70472711,1901.2,1901.1,15.48377479]
[1742303990663,4.70472711,1901.4,1901.2,5.25967]
[1742303991067,4.70472711,1901.4,1901.3,5.25955]
[1742303991267,4.70472711,1901.5,1901.4,5.25913]
[1742303991446,4.70472711,1901.5,1901.4,12.088698]
[1742303992275,4.70472711,1901.5,1901.4,12.48119402]
[1742303992480,4.70472711,1901.5,1901.4,13.75795609]
[1742303992676,4.70472711,1901.5,1901.4,8.98920963]
[1742303992870,4.70472711,1901.5,1901.4,14.24848963]
[1742303993412,4.70472711,1901.5,1901.4,14.87716571]
[1742303993767,4.70472711,1901.5,1901.4,14.0904455]
[1742303994171,7.70472711,1901.5,1901.4,13.2797455]
[1742303994814,4.70472711,1901.5,1901.4,12.65106942]
[1742303997484,4.70472711,1901.5,1901.4,7.39178942]
[1742303997856,4.70472711,1901.5,1901.4,12.65106942]
[1742303998078,4.70472711,1901.5,1901.4,12.65095942]
[1742303998474,4.70472711,1901.5,1901.4,13.42175942]
[1742303998682,7.70472711,1901.7,1901.6,5.25872]
[1742303998883,7.70472711,1901.7,1901.6,6.310471]
[1742303999391,4.70472711,1901.9,1901.7,5.25828]
[1742303999565,4.70472711,1901.9,1901.7,4.957]
[1742304000170,5.25817,1901.8,1901.7,4.957]
[1742304000371,5.79347,1901.8,1901.7,4.957]
[1742304000783,5.79347,1901.8,1901.7,5.4527]
[1742304002086,8.79347,1901.8,1901.7,4.957]
[1742304003192,3.5353,1901.8,1901.7,4.957]
[1742304003398,4.70472711,1901.9,1901.7,10.21534]
[1742304004175,4.70472711,1901.9,1901.7,11.04015]
[1742304004894,4.70472711,1901.9,1901.7,16.29846]
[1742304005063,7.70472711,1901.9,1901.8,1.629846]
[1742304005264,7.70472711,1901.9,1901.7,4.957]
[1742304005793,7.70472711,1901.9,1901.7,10.21544]
[1742304005996,7.70472711,1901.9,1901.7,10.21533]
[1742304006204,0.0939675,1901.8,1901.7,10.21533]
[1742304006406,7.70472711,1901.9,1901.7,11.840239]
[1742304006611,0.09395635,1901.8,1901.7,11.840239]
[1742304006830,7.70472711,1901.9,1901.7,11.840239]
[1742304007012,0.09395635,1901.8,1901.7,17.098589]
[1742304007222,7.70472711,1901.9,1901.8,5.25817]
[1742304007518,7.79868346,1901.9,1901.8,6.9680109]
[1742304007824,0.09395635,1901.9,1901.8,7.81998996]
[1742304008010,4.70472711,1902.2,1902.1,5.25725]
[1742304008207,4.79557777,1902.2,1902.1,6.007483]
[1742304008397,0.09085066,1902.2,1902.1,11.264823]
[1742304008594,4.70472711,1902.3,1902.1,17.332963]
[1742304008774,0.09118544,1902.2,1902.1,12.075623]
[1742304009408,4.70472711,1902.3,1902.2,5.25707]
[1742304009574,4.79591255,1902.3,1902.2,6.9903393]
[1742304010108,4.79591255,1902.3,1902.2,1.7332693]
[1742304010613,4.79591255,1902.3,1902.1,4.956]
[1742304010614,3.0,1902.2,1902.1,4.956]
[1742304010779,8.88371164,1902.2,1901.8,5.25798]
[1742304010979,4.70472711,1902.0,1901.9,4.958]
[1742304011295,0.09135279,1902.0,1901.9,12.045488]
[1742304011694,4.70472711,1902.2,1902.0,5.25741]
[1742304012306,4.70472711,1902.2,1902.1,5.25734]
[1742304012493,3.0,1902.4,1902.1,5.25721]
[1742304012693,4.70472711,1902.3,1902.2,4.961]
[1742304014787,3.0,1902.4,1902.2,4.961]
[1742304014987,4.70472711,1902.3,1902.2,4.961]
[1742304017506,4.70472711,1902.3,1902.2,5.982825]
[1742304017707,4.70472711,1902.3,1902.2,12.014795]
[1742304018220,3.5353,1902.5,1902.2,12.014795]
[1742304018439,5.2555,1902.8,1902.4,5.25638]
[1742304018645,4.70472711,1902.7,1902.5,4.957]
[1742304018791,3.0,1902.6,1902.5,5.978338]
[1742304018993,4.70472711,1902.7,1902.6,5.25596]
[1742304019295,3.0,1902.7,1902.6,6.08616]
[1742304019497,4.70472711,1902.8,1902.7,5.25568]
[1742304019698,4.70472711,1902.8,1902.7,10.21468]
[1742304019899,4.79693899,1902.8,1902.7,6.589084]
[1742304020300,13.05255899,1902.8,1902.5,1.021338]
[1742304020496,4.70472711,1902.6,1902.5,1.021338]
[1742304020705,4.70472711,1902.6,1902.5,5.980338]
[1742304020897,4.79722895,1902.6,1902.5,5.984338]
[1742304021125,4.79722895,1902.6,1902.5,1.021338]
[1742304021430,4.79722895,1902.6,1902.5,5.983338]
[1742304022931,4.79722895,1902.6,1902.5,4.962]
[1742304023134,10.05318895,1902.6,1902.5,4.962]
[1742304023697,10.58848895,1902.6,1902.3,5.25678]
[1742304023904,0.62780184,1902.6,1902.4,4.958]
[1742304024099,5.88385184,1902.6,1902.4,4.958]
[1742304024302,5.88385184,1902.6,1902.4,6.01855286]
[1742304024900,5.88385184,1902.6,1902.3,0.39089862]
[1742304024901,8.25651,1902.4,1902.3,0.39089862]
[1742304025099,3.0,1902.4,1902.3,5.34989862]
[1742304025331,3.09228995,1902.4,1902.3,0.87955296]
[1742304026128,8.34879995,1902.4,1902.3,0.48865434]
[1742304026331,3.09228995,1902.4,1902.3,6.39319227]
[1742304026536,0.09228995,1902.4,1902.3,5.90453793]
[1742304026905,7.70472711,1902.7,1902.5,5.25623]
[1742304027102,7.70472711,1902.7,1902.6,0.525623]
[1742304028041,0.5353,1903.1,1902.8,5.2552]
[1742304028215,3.0,1902.9,1902.8,10.51052]
[1742304028416,3.0,1902.9,1902.8,5.2552]
[1742304028733,3.0,1902.9,1902.8,5.78072]
[1742304031905,4.70472711,1903.1,1902.9,5.25513]
[1742304032112,4.70472711,1903.1,1902.9,10.22113]
[1742304032461,4.70472711,1903.1,1902.9,15.47612]
[1742304032743,4.70472711,1903.1,1902.9,10.22099]
[1742304032938,7.70472711,1903.1,1903.0,1.022099]
[1742304033244,3.0,1903.0,1902.9,5.35676518]
[1742304033441,12.95958711,1903.0,1902.9,5.35676518]
[1742304033943,13.49488711,1903.0,1902.9,0.39076518]
[1742304034740,3.0,1902.8,1902.7,0.48840038]
[1742304034942,7.70472711,1902.8,1902.7,0.48840038]
[1742304035309,7.70472711,1902.8,1902.7,6.81511242]
[1742304035840,7.70472711,1902.8,1902.7,6.32671204]
[1742304036252,7.85746158,1902.8,1902.7,1.07103204]
[1742304036557,13.11287158,1902.8,1902.6,4.966]
[1742304036905,5.25576,1902.7,1902.4,11.05087]
[1742304037111,4.70472711,1902.6,1902.4,11.05087]
[1742304037353,4.85748388,1902.6,1902.5,1.105087]
[1742304037537,4.85748388,1902.6,1902.5,6.361327]
[1742304037738,0.15275677,1902.6,1902.5,6.361327]
[1742304037945,0.15275677,1902.6,1902.5,6.85085181]
[1742304038147,4.70472711,1902.7,1902.6,5.25596]
[1742304038323,4.70472711,1902.7,1902.6,6.46664118]
[1742304039613,4.70472711,1902.7,1902.6,6.95616599]
[1742304040713,5.79017,1903.0,1902.6,6.95616599]
[1742304040714,0.5353,1903.0,1902.7,5.25568]
[1742304040914,4.70472711,1902.8,1902.6,6.95604599]
[1742304041144,4.70472711,1902.8,1902.6,12.21186599]
[1742304041343,4.70472711,1902.8,1902.7,1.2211866]
[1742304042048,4.70472711,1902.8,1902.6,0.48952481]
[1742304042218,7.70472711,1902.8,1902.5,10.51216]
[1742304042420,4.70472711,1902.6,1902.5,10.51216]
[1742304042853,4.70472711,1902.6,1902.5,5.25603]
[1742304043348,7.70472711,1902.8,1902.7,5.25568]
[1742304043527,7.70472711,1902.8,1902.6,5.25584]
[1742304043736,7.70472711,1902.8,1902.6,6.307027]
[1742304045523,7.70472711,1902.8,1902.7,5.25568]
[1742304046024,7.85714936,1902.8,1902.7,5.25568]
[1742304047739,7.85714936,1902.8,1902.7,10.21768]
[1742304049533,7.85714936,1902.8,1902.7,4.962]
[1742304051375,7.85714936,1902.8,1902.7,10.21768]
[1742304051535,7.85714936,1902.8,1902.7,11.765032]
[1742304052470,7.85714936,1902.8,1902.7,6.509352]
[1742304052629,13.11268936,1902.8,1902.6,4.958]
[1742304053659,5.25651,1902.4,1902.3,1.05866426]
[1742304053857,5.25695,1902.3,1901.9,5.25778]
[1742304054157,9.96209711,1902.1,1901.9,5.01]
[1742304054358,9.96209711,1902.1,1901.9,1.026807]
[1742304054763,0.15252261,1902.0,1901.8,5.01]
[1742304055068,0.15252261,1902.0,1901.8,10.26805]
[1742304055239,4.70472711,1901.9,1901.8,10.26805]
[1742304055752,4.85724972,1901.9,1901.8,10.26805]
[1742304056732,4.85724972,1901.9,1901.8,5.01]
[1742304056932,4.85724972,1901.9,1901.8,1.102794]
[1742304057481,4.85724972,1901.9,1901.7,5.009]
[1742304057930,4.85724972,1901.9,1901.7,10.26743]
[1742304058932,4.85724972,1901.9,1901.7,10.26729]
[1742304059158,4.85724972,1901.9,1901.7,5.009]
[1742304059558,8.25829,1901.8,1901.4,11.41922]
[1742304059759,8.25829,1901.8,1901.4,1.667856]
[1742304059760,4.70472711,1901.5,1901.4,1.667856]
[1742304060266,4.85627902,1901.5,1901.4,1.667856]
[1742304060463,0.15155191,1901.5,1901.4,1.667856]
[1742304060771,4.70472711,1901.7,1901.5,5.25888]
[1742304060948,7.70472711,1901.7,1901.6,5.784608]
[1742304061154,7.70472711,1901.7,1901.6,0.525888]
[1742304061466,12.96317711,1901.7,1901.3,11.07562]
[1742304061672,4.70472711,1901.5,1901.3,16.33501]
[1742304061843,7.70472711,1901.7,1901.4,5.25928]
[1742304062043,7.70472711,1901.7,1901.4,10.51845]
[1742304062239,7.70472711,1901.7,1901.5,6.310825]
[1742304062654,7.70472711,1901.7,1901.5,1.051845]
[1742304062864,8.24002711,1901.7,1901.3,11.07556]
[1742304063066,8.24002711,1901.7,1901.4,5.25918]
[1742304064362,7.70472711,1901.7,1901.4,10.51825]
[1742304064563,7.70472711,1901.7,1901.5,5.25895]
[1742304064876,7.70472711,1901.7,1901.6,0.525895]
[1742304065271,7.70472711,1901.7,1901.4,10.51837]
[1742304065429,7.70472711,1901.7,1901.3,11.07573]
[1742304065630,7.70472711,1901.7,1901.4,5.2592]
[1742304066481,0.15007911,1901.6,1901.3,11.07554]
[1742304066676,4.70472711,1901.5,1901.3,16.3349]
[1742304066966,4.70472711,1901.5,1901.4,6.89277]
[1742304067669,3.0,1901.7,1901.5,5.25879]
[1742304067970,4.70472711,1901.6,1901.4,6.8927]
[1742304068835,3.0,1901.5,1901.4,1.63349]
[1742304069063,5.25938,1901.4,1901.1,1.8882793]
[1742304069267,5.25938,1901.4,1901.2,5.003]
[1742304069570,14.05349,1901.5,1901.1,10.26306]
[1742304069773,14.05349,1901.5,1901.2,1.026306]
[1742304070063,8.7943,1901.5,1901.2,1.026306]
[1742304070262,5.25937,1901.4,1901.2,1.026306]
[1742304070468,5.24002711,1901.5,1901.2,5.25983]
[1742304070665,4.70472711,1901.5,1901.3,5.25943]
[1742304070966,4.70472711,1901.5,1901.3,5.25941]
[1742304071149,4.70472711,1901.5,1901.2,6.08412]
[1742304071347,4.70472711,1901.5,1901.3,0.608412]
[1742304071544,9.96376711,1901.5,1901.3,0.608412]
[1742304071763,3.0,1901.4,1901.3,0.608412]
[1742304071933,3.0,1901.4,1901.1,5.2601]
[1742304072139,4.70472711,1901.2,1901.1,5.004]
[1742304072673,9.96457711,1901.2,1900.9,5.2606]
[1742304072865,4.70472711,1901.0,1900.8,11.09408]
[1742304073173,4.70472711,1901.0,1900.9,6.370081]
[1742304073537,4.70472711,1901.0,1900.9,1.109421]
[1742304074969,4.70472711,1901.0,1900.8,5.003]
[1742304075669,9.96521711,1901.0,1900.4,23.48339]
[1742304075883,4.70472711,1900.6,1900.5,10.26875]
[1742304076060,4.70472711,1900.6,1900.5,11.5348564]
[1742304077045,4.70472711,1900.6,1900.5,6.5278564]
[1742304077285,4.70472711,1900.6,1900.5,11.5338564]
[1742304078477,4.70472711,1900.8,1900.6,5.26123]
[1742304078636,0.14920812,1900.7,1900.6,5.26123]
[1742304078840,0.14920812,1900.7,1900.6,6.94073864]
[1742304079775,0.14920812,1900.7,1900.6,7.70703864]
[1742304080674,0.14920812,1900.7,1900.6,6.94073864]
[1742304081045,4.70472711,1900.8,1900.6,6.94073864]
[1742304081378,0.14920812,1900.7,1900.6,6.94073864]
[1742304082259,0.14920812,1900.7,1900.6,5.26123]
[1742304085960,0.14920812,1900.7,1900.5,11.5338564]
[1742304086278,4.70472711,1900.6,1900.5,5.26175]
[1742304086860,4.85393523,1900.6,1900.5,5.26175]
[1742304087683,7.70472711,1900.8,1900.6,5.26124]
[1742304087860,7.70472711,1900.8,1900.7,5.26121]
[1742304088784,7.70472711,1900.8,1900.6,5.26124]
[1742304088985,7.70472711,1900.8,1900.5,6.02073]
[1742304089189,7.70472711,1900.8,1900.5,5.26163]
[1742304089688,7.70472711,1900.8,1900.5,10.52325]
[1742304089986,7.70472711,1900.8,1900.6,5.26136]
[1742304090387,7.70472711,1900.8,1900.6,10.5227]
[1742304091858,7.70472711,1900.8,1900.7,5.26121]
[1742304093786,7.70472711,1900.8,1900.6,11.57499]
[1742304093965,8.24002711,1900.8,1900.6,5.26134]
[1742304094358,8.24002711,1900.8,1900.5,5.26165]
[1742304094554,4.70472711,1900.6,1900.2,1.03327919]
[1742304094758,4.70472711,1900.4,1900.3,10.25231]
[1742304095372,4.70472711,1900.4,1900.3,11.803789]
[1742304096156,4.85296335,1900.4,1900.3,11.803789]
[1742304096563,0.14823624,1900.4,1900.3,11.803789]
[1742304096874,4.70472711,1900.6,1900.5,5.26177]
[1742304097472,4.70472711,1900.6,1900.3,10.25221]
[1742304097795,4.70472711,1900.4,1900.3,10.25221]
[1742304099193,4.70472711,1900.4,1900.3,11.74250102]
[1742304100762,4.70472711,1900.4,1900.3,10.25221]
[1742304109270,3.5353,1900.7,1900.5,5.26177]
[1742304109271,7.70472711,1900.6,1900.5,5.26177]
[1742304109478,3.0,1900.6,1900.5,5.26177]
[1742304110492,7.70472711,1900.6,1900.5,5.26177]
[1742304110696,4.70472711,1900.6,1900.5,5.26177]
[1742304111201,4.70472711,1900.8,1900.7,5.26113]
[1742304112082,4.70472711,1900.8,1900.5,5.26161]
[1742304112286,3.5353,1900.9,1900.6,5.26128]
[1742304112574,4.70472711,1900.7,1900.6,5.26128]
[1742304114803,7.70472711,1900.7,1900.6,5.26128]
[1742304122432,12.96602711,1900.7,1900.4,10.52388]
[1742304122729,4.70472711,1900.5,1900.2,5.26233]
[1742304122889,4.70472711,1900.3,1900.1,11.42274]
[1742304123096,4.70472711,1900.3,1900.1,5.26274]
[1742304123295,4.70472711,1900.3,1900.2,5.2626]
[1742304123514,4.70472711,1900.3,1900.2,6.61470544]
[1742304123718,3.0,1900.4,1900.3,5.26209]
[1742304124024,7.70472711,1900.5,1900.4,5.26205]
[1742304125317,3.0,1900.5,1900.4,10.23205]
[1742304125825,7.70472711,1900.5,1900.4,10.23205]
[1742304125987,3.0,1900.5,1900.4,11.860634]
[1742304126191,3.14799034,1900.5,1900.4,11.860634]
[1742304126595,0.14799034,1900.5,1900.4,11.860634]
[1742304126792,0.14799034,1900.5,1900.4,12.661834]
[1742304127220,7.70472711,1900.7,1900.6,5.26149]
[1742304127587,0.14799034,1900.7,1900.6,6.313804]
[1742304127893,4.70472711,1901.1,1900.9,5.26044]
[1742304128124,3.0,1901.0,1900.9,5.26044]
[1742304128498,3.5353,1901.3,1901.1,5.26006]
[1742304128703,7.70472711,1901.2,1901.1,5.26006]
[1742304128927,1.105441,1901.3,1901.1,5.26006]
[1742304129228,18.02684163,1901.7,1901.3,5.25945]
[1742304129229,4.70472711,1901.4,1901.3,5.25945]
[1742304129729,7.70472711,1901.4,1901.3,5.25945]
[1742304130115,4.70472711,1901.4,1901.3,5.25945]
[1742304131636,4.70472711,1901.4,1901.1,5.26001]
[1742304131841,4.70472711,1901.2,1901.0,5.26027]
[1742304132032,4.70472711,1901.1,1900.9,5.26064]
[1742304133436,4.70472711,1901.1,1901.0,5.26038]
[1742304134825,3.0,1901.2,1901.1,5.25987]
[1742304135217,3.0,1901.2,1901.0,6.06477]
[1742304135218,3.0,1901.2,1901.0,5.26027]
[1742304135418,4.70472711,1901.1,1901.0,10.52055]
[1742304136516,3.5353,1901.5,1901.1,0.7879]
[1742304136826,3.5353,1901.6,1901.3,5.25945]
[1742304137412,3.5353,1901.6,1901.3,10.51884]
[1742304137608,7.70472711,1901.4,1901.1,11.0218]
[1742304137837,1.30577271,1901.3,1901.1,10.2339]
[1742304138042,4.70472711,1901.2,1901.1,10.2339]
[1742304138744,4.70472711,1901.2,1901.0,5.26037]
[1742304139042,3.0,1901.1,1901.0,4.979]
[1742304139246,3.0,1901.1,1901.0,10.23938]
[1742304139835,4.70472711,1901.2,1901.0,10.23938]
[1742304140235,4.70472711,1901.2,1901.0,4.979]
[1742304140849,6.28067082,1901.2,1901.0,4.979]
[1742304141214,0.14877251,1901.1,1901.0,4.979]
[1742304143249,0.14877251,1901.1,1901.0,10.23938]
[1742304144146,0.14877251,1901.1,1901.0,4.979]
[1742304144448,0.14877251,1901.1,1901.0,10.23938]
[1742304145743,4.70472711,1901.4,1901.3,5.25955]
[1742304146042,4.70472711,1901.7,1901.6,5.25862]
[1742304146246,4.70472711,1901.7,1901.5,5.25878]
[1742304146626,4.70472711,1901.7,1901.4,11.28186]
[1742304146823,4.70472711,1901.5,1901.3,10.23545]
[1742304147246,4.70472711,1901.5,1901.3,4.976]
[1742304147634,4.70472711,1901.5,1901.3,10.23546]
[1742304148447,4.70472711,1901.5,1901.4,5.25928]
[1742304148944,4.70472711,1901.5,1901.3,10.23539]
[1742304149328,4.70472711,1901.5,1901.3,4.976]
[1742304150130,4.70472711,1901.5,1901.4,5.25928]
[1742304153552,4.70472711,1901.5,1901.3,4.976]
[1742304153850,4.70472711,1901.5,1901.3,10.23554]
[1742304154964,4.70472711,1901.5,1901.4,5.25928]
[1742304155657,7.70472711,1901.5,1901.4,5.25928]
[1742304156159,7.85428145,1901.5,1901.4,5.25928]
[1742304157357,7.85428145,1901.5,1901.3,10.23546]
[1742304157671,5.25928,1901.4,1901.3,4.976]
[1742304157871,5.25928,1901.4,1901.1,10.52003]
[1742304158191,4.70472711,1901.2,1901.0,6.07616]
[1742304158485,4.70472711,1901.2,1901.0,16.29739]
[1742304158641,0.14956551,1901.1,1901.0,11.03713]
[1742304159254,4.70472711,1901.2,1901.0,11.03713]
[1742304159455,0.14938682,1901.1,1901.0,11.03713]
[1742304159682,0.14938682,1901.1,1901.0,5.7769]
[1742304159887,0.14938682,1901.1,1900.9,10.22556]
[1742304160186,4.70472711,1901.0,1900.9,15.48611]
[1742304160353,4.85405809,1901.0,1900.9,15.48611]
[1742304160549,4.85405809,1901.0,1900.9,10.22555]
[1742304160788,4.85405809,1901.0,1900.7,5.26111]
[1742304160940,4.70472711,1900.7,1900.6,12.30552279]
[1742304161468,4.85391289,1900.7,1900.6,6.51142279]
[1742304161673,4.85391289,1900.7,1900.6,11.47642279]
[1742304162037,4.70472711,1900.7,1900.6,11.47642279]
[1742304162240,4.85391289,1900.7,1900.6,11.47642279]
[1742304162768,4.70472711,1900.7,1900.6,11.47642279]
[1742304163075,4.70472711,1900.9,1900.7,5.26111]
[1742304163277,4.70472711,1900.9,1900.7,10.52218]
[1742304163464,4.70472711,1900.9,1900.7,5.26107]
[1742304163668,4.70472711,1900.9,1900.7,10.5222]
[1742304164075,4.70472711,1900.9,1900.7,5.26107]
[1742304164459,4.70472711,1900.9,1900.6,10.22638]
[1742304164666,4.70472711,1900.9,1900.6,15.48772]
[1742304164867,4.70472711,1900.9,1900.7,5.26119]
[1742304165177,4.70472711,1900.9,1900.7,5.26107]
[1742304165374,9.96545711,1900.9,1900.6,5.26144]
[1742304165677,9.96545711,1900.9,1900.5,4.961]
[1742304165678,4.70472711,1900.7,1900.5,4.961]
[1742304166055,4.70472711,1900.7,1900.5,5.26176]
[1742304166451,4.70472711,1900.7,1900.5,5.26155]
[1742304166773,4.70472711,1900.7,1900.6,5.26149]
[1742304167163,4.70472711,1900.7,1900.4,0.8124]
[1742304167369,4.70472711,1900.7,1900.4,11.03434]
[1742304167679,4.70472711,1900.7,1900.4,6.07431]
[1742304167855,4.70472711,1900.7,1900.4,16.30126]
[1742304168058,4.70472711,1900.7,1900.5,5.26174]
[1742304168258,4.70472711,1900.7,1900.6,5.26149]
[1742304169382,4.70472711,1900.9,1900.7,6.01169]
[1742304169679,7.70472711,1900.9,1900.8,5.26094]
[1742304171183,3.0,1900.8,1900.7,10.97769]
[1742304171366,4.70472711,1900.9,1900.7,10.22699]
[1742304171545,0.1483256,1900.8,1900.7,10.22699]
[1742304175584,3.1483256,1900.8,1900.7,10.22699]
[1742304175778,3.1483256,1900.8,1900.7,12.301965]
[1742304177391,0.1483256,1900.8,1900.7,12.301965]
[1742304177858,0.1483256,1900.8,1900.7,4.966]
[1742304178265,0.1483256,1900.8,1900.7,10.22721]
[1742304184966,4.70472711,1901.4,1901.3,5.25955]
[1742304185260,4.84260841,1901.4,1901.3,5.25955]
[1742304185887,4.84260841,1901.4,1901.3,6.04655]
[1742304186292,4.84260841,1901.4,1901.3,7.17718]
[1742304187277,0.1378813,1901.4,1901.3,7.17718]
[1742304187500,0.1378813,1901.4,1901.3,12.1887695]
[1742304187678,4.70472711,1901.9,1901.7,5.25824]
[1742304188086,0.1378813,1901.8,1901.7,5.25824]
[1742304188463,4.70472711,1901.9,1901.7,5.25824]
[1742304188691,0.1378813,1901.8,1901.7,5.25824]
[1742304188996,4.70472711,1901.9,1901.7,5.25824]
[1742304189202,0.1378813,1901.8,1901.7,5.25824]
[1742304189365,4.70472711,1901.9,1901.7,5.25824]
[1742304189571,0.1378813,1901.8,1901.7,5.25824]
[1742304189772,7.70472711,1901.9,1901.8,5.25817]
[1742304189976,4.84260841,1901.9,1901.8,5.25817]
[1742304190983,4.84260841,1901.9,1901.7,5.25824]
[1742304191184,4.84260841,1901.9,1901.6,5.784]
[1742304191185,10.63600841,1901.9,1901.6,4.959]
[1742304191485,4.70472711,1901.7,1901.6,4.959]
[1742304191867,4.84352645,1901.7,1901.4,5.25926]
[1742304192072,4.70472711,1901.5,1901.4,5.25926]
[1742304192702,4.84352645,1901.5,1901.4,5.25926]
[1742304193302,4.84352645,1901.5,1901.3,10.22255]
[1742304194481,4.84352645,1901.5,1901.3,10.2224]
[1742304194808,0.13879934,1901.5,1901.4,5.25928]
[1742304195021,4.70472711,1901.7,1901.5,5.2589]
[1742304195211,0.13845237,1901.6,1901.5,5.2589]
[1742304196418,0.13845237,1901.6,1901.5,6.0661]
[1742304197726,4.84317948,1901.6,1901.5,5.2589]
[1742304199021,0.13845237,1901.6,1901.5,5.2589]
[1742304199218,4.70472711,1901.8,1901.6,5.25871]
[1742304199399,4.84404158,1901.7,1901.6,5.25871]
[1742304199916,4.84404158,1901.7,1901.5,5.2589]
[1742304200222,4.84404158,1901.7,1901.5,10.51776]
[1742304201626,4.84404158,1901.7,1901.6,5.25872]
[1742304202329,4.84404158,1901.7,1901.4,5.25917]
[1742304202624,4.70472711,1901.5,1901.4,5.25915]
[1742304202825,4.84403038,1901.5,1901.4,5.25915]
[1742304203899,0.13930327,1901.5,1901.4,6.889019]
[1742304204317,5.79322,1901.9,1901.5,10.51752]
[1742304204504,4.70472711,1901.7,1901.5,10.51752]
[1742304204695,4.70472711,1901.7,1901.6,5.25872]
[1742304205192,4.70472711,1901.7,1901.5,5.25875]
[1742304206100,9.96320711,1901.7,1901.4,5.25927]
[1742304206292,4.70472711,1901.5,1901.4,5.25927]
[1742304206898,5.24002711,1901.5,1901.2,5.25973]
[1742304207099,4.70472711,1901.3,1901.2,5.25973]
[1742304208230,4.70472711,1901.3,1901.2,6.807713]
[1742304209128,4.70472711,1901.5,1901.3,5.25931]
[1742304209535,4.70472711,1901.5,1901.3,10.51865]
[1742304210134,4.70472711,1901.5,1901.4,5.25928]
[1742304210333,4.70472711,1901.5,1901.3,5.25931]
[1742304211033,4.70472711,1901.5,1901.3,5.25954]
[1742304212003,4.70472711,1901.5,1901.2,5.25972]
[1742304212004,9.96374711,1901.5,1901.2,5.25972]
[1742304212231,9.96374711,1901.5,1901.1,5.7919]
[1742304212232,4.70472711,1901.3,1901.1,5.26007]
[1742304212610,4.70472711,1901.3,1901.0,16.38327]
[1742304212813,4.70472711,1901.1,1901.0,10.22327]
[1742304213025,4.70472711,1901.1,1901.0,5.26038]
[1742304213911,4.70472711,1901.1,1900.9,15.48402]
[1742304214115,4.70472711,1901.1,1900.9,10.52102]
[1742304214507,4.70472711,1901.1,1901.0,5.26038]
[1742304215098,4.70472711,1901.1,1900.9,5.26047]
[1742304215506,4.70472711,1901.1,1900.9,5.26054]
[1742304215705,4.70472711,1901.1,1900.8,15.48476]
[1742304215900,4.70472711,1900.9,1900.7,11.4211]
[1742304216105,4.70472711,1900.9,1900.7,18.172426]
[1742304216303,10.50078711,1900.9,1900.6,10.22339]
[1742304216641,4.70472711,1900.7,1900.6,10.22339]
[1742304216838,4.84345943,1900.7,1900.6,10.22339]
[1742304217138,10.10480943,1900.7,1900.4,10.225]
[1742304217315,4.70472711,1900.5,1900.4,10.225]
[1742304217637,4.84326904,1900.5,1900.4,10.225]
[1742304218020,4.84326904,1900.5,1900.3,15.48834]
[1742304218631,4.84326904,1900.5,1900.4,5.26205]
[1742304219638,0.13854193,1900.5,1900.4,7.590271]
[1742304219937,4.70472711,1900.7,1900.5,5.26163]
[1742304220144,4.70472711,1900.6,1900.5,5.26163]
[1742304220345,4.84326904,1900.6,1900.5,5.26163]
[1742304221639,0.5353,1900.5,1900.2,5.26258]
[1742304221813,0.13769086,1900.4,1900.3,5.26231]
[1742304222342,0.13769086,1900.4,1900.3,7.099897]
[1742304222542,0.5353,1900.7,1900.3,1.837587]
[1742304222714,0.5353,1900.7,1900.5,5.26171]
[1742304223219,4.70472711,1900.6,1900.5,5.26171]
[1742304223535,4.70472711,1900.6,1900.4,5.26194]
[1742304223741,4.70472711,1900.6,1900.4,10.52388]
[1742304223947,4.70472711,1900.6,1900.4,5.26194]
[1742304224155,4.70472711,1900.6,1900.4,10.52382]
[1742304225064,4.70472711,1900.6,1900.3,6.04738]
[1742304225249,4.70472711,1900.4,1900.3,5.26228]
[1742304226852,4.70472711,1900.4,1900.3,11.02908]
[1742304227053,5.26041,1901.0,1900.3,11.02908]
[1742304227054,0.5353,1901.1,1900.8,5.26094]
[1742304227257,4.70472711,1900.9,1900.8,5.26094]
[1742304228022,4.70472711,1901.0,1900.9,5.2604]
[1742304229127,4.70472711,1901.1,1901.0,5.26038]
[1742304229327,4.70472711,1901.2,1901.1,5.25985]
[1742304229754,4.70472711,1901.3,1901.2,5.25959]
[1742304230157,0.5353,1901.7,1901.5,5.25886]
[1742304230462,0.5353,1901.9,1901.7,5.25844]
[1742304230640,3.5353,1901.9,1901.7,5.25844]
[1742304230829,0.5353,1901.9,1901.8,5.25817]
[1742304231031,0.5353,1902.1,1901.8,5.25817]
[1742304231243,4.70472711,1901.9,1901.8,5.25817]
[1742304231625,4.83693755,1901.9,1901.8,5.25817]
[1742304235025,4.83693755,1901.9,1901.6,5.25854]
[1742304235230,4.70472711,1901.7,1901.6,10.24054]
[1742304235454,4.83816085,1901.7,1901.6,10.24054]
[1742304237175,4.83816085,1901.7,1901.6,11.790486]